Cogmind - Beta 14 @@@ ROGUE MODE // 2024.11.04 @ 18:28:19 Player: Zaltark Result: Destroyed by G-34 Mercenary with Small Laser Performance ------------- Evolutions (0) 0 Regions Visited (2) 400 Robots Destroyed (15) 75 Value Destroyed (389) 389 Prototype IDs (0) 0 Alien Tech Used (0) 0 Bonus (0) 0 TOTAL SCORE: 864 Bonus ------- None Cogmind --------- Core Integrity 0/250 Matter 300/300 Energy 86/100 System Corruption 0% Temperature Cool (6) Movement Walking (190) Ox1 Location -10/Mines Parts ------- > --- POWER (1) -------- (None) > --- PROPULSION (2) --- Aluminum Leg > --- UTILITY (2) ------ Improved Heat Sink Medium Storage Unit > --- WEAPON (2) ------- Beamcaster > --- INVENTORY (10) --- Light Angular Momentum Engine Signal Generator Peak State ------------ > --- POWER ------------ Light Nuclear Core > --- PROPULSION ------- Aluminum Leg Aluminum Leg > --- UTILITY ---------- Improved Heat Sink Medium Storage Unit > --- WEAPON ----------- Beamcaster > --- INVENTORY -------- Light Angular Momentum Engine Signal Generator [Rating: 15] Favorites ----------- Power Light Ion Engine Engine Light Ion Engine Power Core Light Nuclear Core Propulsion Aluminum Leg Leg Aluminum Leg Utility Medium Storage Unit Device Seismic Detector Storage Medium Storage Unit Weapon Small Laser Energy Gun Small Laser Launcher Grenade Launcher Build | -11 -10 -10 ------- Run | Yrd Mat Min Slots Evolved . | . . . Power . | . . . Propulsion . | . . . Utility . | . . . Weapon . | . . . Parts Attached 19 | 8 6 5 Power 5 | 1 2 2 Engine 3 | 1 1 1 Core 2 | . 1 1 Reactor . | . . . Propulsion 4 | 2 1 1 Treads . | . . . Leg 4 | 2 1 1 Wheel . | . . . Hover . | . . . Flight . | . . . Utility 3 | 1 1 1 Device 2 | 1 . 1 Storage 1 | . 1 . Processor . | . . . Hackware . | . . . Protection . | . . . Artifact . | . . . Weapon 7 | 4 2 1 Energy Gun 6 | 4 1 1 Energy Cannon . | . . . Ballistic Gun . | . . . Ballistic Cannon . | . . . Launcher 1 | . 1 . Special Weapon . | . . . Impact Weapon . | . . . Slashing Weapon . | . . . Piercing Weapon . | . . . Special Melee Weapon . | . . . Unidentified Prototypes . | . . . Parts Lost 6 | 1 3 2 Power 2 | . 1 1 Propulsion 1 | . . 1 Utility 1 | . 1 . Weapon 2 | 1 1 . Highest Loss Streak 3 | 1 3 2 To Critical Strikes . | . . . Average Slot Usage (%) 69 | . 76 55 Engine 5 | . 8 . Core 4 | . 3 5 Leg 20 | . 21 19 Device 10 | . 12 7 Storage 11 | . 10 14 Energy Gun 15 | . 18 8 Peak Build Rating 15 | 6 7 15 Average Rating 6 | 3 6 8 On Entrance 2 | . 6 2 Naked Turns . | . . . Heaviest Build 21 | 7 21 21 Greatest Support 20 | 20 20 20 Greatest Overweight (x) 1 | . 1 1 Average Overweight (x) . | . . . Largest Inventory Capacity 10 | 5 10 10 Average Capacity 8 | 5 8 10 Most Carried 5 | 5 3 5 Average Carried 1 | 2 . 1 Final Capacity 10 | 5 10 10 Final Carried 2 | . . 2 Class Distribution -------------------- 88% | Mutant 11% | Scavenger-Mutant Dominant Class ---------------- Mutant | -10/Materials Mutant | -10/Mines Resources | -11 -10 -10 ----------- Run | Yrd Mat Min Matter Collected 401 | 275 85 41 Remotely . | . . . Salvage Created 435 | 49 278 108 Parts 29 | . 23 6 Haulers Intercepted . | . . . Recyclers Shooed 2 | . 2 . Parts Field Recycled . | . . . Retrieved Matter . | . . . Parts Self-Destructed . | . . . Prevented . | . . . Kills | -11 -10 -10 ------- Run | Yrd Mat Min Combat Hostiles Destroyed 11 | 1 8 2 Guns 9 | 1 6 2 AOE 2 | . 2 . Classes Destroyed 5 | 1 4 . Worker 1 | . 1 . Builder 1 | . 1 . Watcher 2 | . 2 . Swarmer 3 | . 3 . Grunt 8 | 1 5 2 Best Kill Streak 6 | 1 6 1 Combat Bots Only 4 | 1 4 1 Max Kills in Single Turn 2 | 1 2 1 Gunslinging . | . . . Exploded 1 | . 1 . Melee . | . . . Uniques/NPCs Destroyed . | . . . Combat | -11 -10 -10 -------- Run | Yrd Mat Min Hostile Shots Fired 100 | 8 56 36 Missed 24 | 3 12 9 Damage Taken 906 | 55 486 365 Core 259 | 10 112 137 Absorbed by Shields . | . . . Core Remaining (%) 96 | 96 . . Volleys Fired 77 | 8 56 13 Largest 2 | 2 2 1 Hottest 90 | 90 90 75 Shots Fired 109 | 11 85 13 Gun 106 | 11 82 13 Cannon . | . . . Launcher 3 | . 3 . Special . | . . . Kinetic . | . . . Thermal 103 | 8 82 13 Explosive 3 | . 3 . Electromagnetic 3 | 3 . . Robot Hit Streak 6 | 5 6 6 Robot Miss Streak 5 | 3 5 3 Penetration Max . | . . . Secondary Targets 1 | . 1 . Max Gunslinging Chain 1 | . 1 . Shots Hit Robots 53 | 7 39 7 Core Hits 26 | 2 20 4 Critical Kills . | . . . Critical Parts Destroyed . | . . . Critical Strikes 6 | 2 3 1 Burn 6 | 2 3 1 Melee Attacks . | . . . Impact . | . . . Slashing . | . . . Piercing . | . . . Sneak Attacks . | . . . Combat Hostiles . | . . . Follow-up Attacks . | . . . Damage Inflicted 877 | 86 639 152 Guns 743 | 86 512 145 Cannons . | . . . Explosions 124 | . 124 . Melee . | . . . Ramming 10 | . 3 7 Kinetic . | . . . Thermal 731 | 74 512 145 Explosive 124 | . 124 . Electromagnetic 12 | 12 . . Impact . | . . . Slashing . | . . . Piercing . | . . . Highest Corruption . | . . . Average Corruption . | . . . Corruption Purged . | . . . Corruption Blocked . | . . . Overload Shots . | . . . Overflow Damage . | . . . Projectiles . | . . . Explosions . | . . . Melee . | . . . Knockbacks . | . . . Impact . | . . . Kinetic . | . . . Secondary . | . . . Self-Inflicted Damage . | . . . Shots . | . . . Rammed . | . . . Targets Rammed 4 | . 1 3 Kicked 4 | . 1 3 Crushed . | . . . Highest Temperature 249 | 128 249 143 Average Temperature 72 | 66 75 58 Received Heat Transfer 477 | 30 249 198 Siege Activations . | . . . Robots Corrupted . | . . . Combat Hostiles . | . . . Parts Fried . | . . . Impact Corruptions . | . . . Robots Melted . | . . . Combat Hostiles . | . . . Parts Melted 5 | 1 2 2 Heat Transferred 2254 | 370 1551 333 Parts Sabotaged . | . . . Parts Stolen . | . . . Parts Stripped . | . . . Power Chain Reactions . | . . . Alert | -11 -10 -10 ------- Run | Yrd Mat Min Peak Influence 281 | 20 281 67 Initial 27 | . 13 27 Average 99 | 5 156 44 Maximum Alert Level 1 | . 1 . Low Security (%) 76 | 100 56 100 Level 1 23 | . 43 . Level 2 . | . . . Level 3 . | . . . Level 4 . | . . . Level 5 . | . . . High Security . | . . . Max Security . | . . . Squads Dispatched 1 | . 1 . Investigation . | . . . Extermination . | . . . Reinforcement 1 | . 1 . Assault . | . . . Garrison . | . . . Intercept . | . . . Searches Triggered . | . . . Construction Impeded . | . . . Haulers Reinforced . | . . . Active Scanning Responses . | . . . Cargo Convoy Interrupts . | . . . Stealth | -11 -10 -10 --------- Run | Yrd Mat Min Distress Signals 3 | . 3 . Communications Jammed . | . . . Distress Signals . | . . . Times Spotted 21 | 1 16 4 Peak Tracking Total 6 | 1 6 2 Tactical Retreats . | . . . Traps | -11 -10 -10 ------- Run | Yrd Mat Min Traps Triggered 2 | . 2 . Indirectly . | . . . Trap Hack Attempts . | . . . Triggered . | . . . Disarmed . | . . . Reprogrammed . | . . . Reused . | . . . Traps Extracted . | . . . Installed . | . . . Triggered . | . . . Machines | -11 -10 -10 ---------- Run | Yrd Mat Min Machines Disabled 1 | . 1 . Max in Single Turn 1 | . 1 . Machines Repaired . | . . . Machines Dismantled . | . . . Machines Sabotaged . | . . . Overloaded Fab Kills . | . . . Hacking | -11 -10 -10 --------- Run | Yrd Mat Min Machines Accessed 2 | . 2 . Terminals 1 | . 1 . Fabricators . | . . . Repair Stations . | . . . Recycling Units 1 | . 1 . Scanalyzers . | . . . Garrison Access . | . . . Total Hacks 5 | . 5 . Successful 4 | . 4 . Failed 1 | . 1 . Catastrophic 1 | . 1 . Database Lockouts . | . . . Manual . | . . . Terminals 2 | . 2 . Fabricators . | . . . Repair Stations . | . . . Recycling Units 3 | . 3 . Scanalyzers . | . . . Garrison Access . | . . . Terminal Hacks 1 | . 1 . Record 1 | . 1 . Fabricator Hacks . | . . . Repair Station Hacks . | . . . Recycling Unit Hacks 3 | . 3 . Recycle Component 1 | . 1 . Process 2 | . 2 . Scanalyzer . | . . . Garrison Access Hacks . | . . . Unauthorized Hacks . | . . . Terminals . | . . . Fabricators . | . . . Repair Stations . | . . . Recycling Units . | . . . Scanalyzers . | . . . Garrison Access . | . . . Data Cores Recovered . | . . . Used . | . . . Hacking Detections 2 | . 2 . Full Trace Events 1 | . 1 . Feedback Events . | . . . Feedback Blocked . | . . . Robot Schematics Acquired . | . . . Robots Built . | . . . Authchips . | . . . Time . | . . . Total Robot Build Rating . | . . . Part Schematics Acquired . | . . . Parts Built . | . . . Authchips . | . . . Time . | . . . Total Part Build Rating . | . . . Parts Repaired . | . . . Time . | . . . Parts Recycled 1 | . 1 . Recycled Matter 115 | . 115 . Retrieved Matter . | . . . Retrieved Components . | . . . Parts Scanalyzed . | . . . Part Schematics Acquired . | . . . Parts Damaged . | . . . Bothacking | -11 -10 -10 ------------ Run | Yrd Mat Min Used RIF Installer . | . . . Robots Hacked . | . . . Non-combat . | . . . Combat . | . . . Robot Hacks Applied . | . . . Relay Couplers Released . | . . . Fabnet Peak Effective % . | . . . Robots Rewired . | . . . Allies Hacked . | . . . Hacks Repelled . | . . . Allies | -11 -10 -10 -------- Run | Yrd Mat Min Total Allies . | . . . Largest Group . | . . . Highest-Rated Group . | . . . Highest-Rated Ally . | . . . Total Orders . | . . . Ally Attacks . | . . . Total Damage . | . . . Kills . | . . . Allies Corrupted . | . . . Allies Melted . | . . . Intel | -11 -10 -10 ------- Run | Yrd Mat Min Robot Analysis Total . | . . . Derelict Logs Recovered . | . . . Drone Launches . | . . . Drone Recoveries . | . . . Exploration | -11 -10 -10 ------------- Run | Yrd Mat Min Turns Passed 788 | 129 431 228 Spaces Moved 406 | 94 189 123 Core 31 | 31 . . Treads . | . . . Legs 375 | 63 189 123 Wheels . | . . . Hover . | . . . Flight . | . . . Fastest Speed 50 | 50 120 120 Average Speed 135 | 96 143 150 Slowest Speed 190 | 120 190 190 Overloaded Moves . | . . . Propulsion Burnouts . | . . . Robots Hopped . | . . . Cave-ins Triggered . | . . . Exploration Rate (%) 18 | 8 30 17 Regions Visited 2 Branch Regions 1 Pre-discovered Areas . | . . . Known Exits Taken . | . . . Unknown Exits Taken 2 | 1 1 . Scrap Searched . | . . . Spaces Dug . | . . . Terrain Destroyed 13 | . 13 . Melee . | . . . Projectile . | . . . AOE 13 | . 13 . Terrain Rammed . | . . . Walls Destroyed . | . . . Machines Disabled . | . . . Actions | -11 -10 -10 --------- Run | Yrd Mat Min Total 534 | 122 262 150 Wait . | . . . Move 404 | 93 188 123 Hop . | . . . Pick Up 23 | 10 7 6 Fast Attach . | . . . Attach 13 | 7 2 4 Detach . | . . . Swap 6 | 1 4 1 Drop 7 | 3 4 . Fire 77 | 8 56 13 Melee . | . . . Ram . | . . . Kick 4 | . 1 3 Crush . | . . . Escape Stasis . | . . . Rewire . | . . . Trap . | . . . Miscellaneous . | . . . Route ------- -11/Scrapyard -10/Materials -10/Mines History --------- Turn | Location | Event 2 | -11/Scrapyard | Met Revision 17 68 | -11/Scrapyard | Discovered new exit (range 8) 130 | -11/Scrapyard | Entered Materials 318 | -10/Materials | Build established: Mutant 548 | -10/Materials | Discovered new exit (range 12) 561 | -10/Materials | Entered Mines 562 | -10/Mines | Met a Derelict testing a Signal Generator 565 | -10/Mines | Lost 3 parts (1p1u1w) 566 | -10/Mines | Found Signal Generator 649 | -10/Mines | Core integrity fell below 50% 766 | -10/Mines | Core integrity fell below 20% 789 | -10/Mines | Destroyed by G-34 Mercenary with Small Laser Last Messages --------------- G-47 Trooper suffers critical hit (Burn). 45-PYC(g) destroyed. Acquired Beamcaster. G-47 Trooper suffers critical hit (Burn). G-47 Trooper destroyed. Acquired Aluminum Leg. Acquired Lgt. Nuclear Core. Acquired Imp. Heat Sink. Acquired Lgt. Angular Momentum Engine. Acquired 10 matter. R-06 Scavenger collects Aluminum Leg. Kicked R-06 Scavenger. Acquired 10 matter. Acquired 1 matter. Kicked K-01 Serf. Aluminum Leg destroyed. Lgt. Nuclear Core destroyed. Imp. Heat Sink melted. Aluminum Leg melted. G-47 Trooper destroyed. Map ----- +----------------------------------------------------+ | ?????????????????????????????????????????????????? | | ?????????????????????????????????????????????????? | | ?????????????????????????????????????????????????? | | ?????????????????????????????????????????????????? | | ?????????????????????????????????????????????????? | | ?????????????????????????????????????????????????? | | ?????????????????????????????????????????????????? | | ?????????????????????????????????????????????????? | | ?????????????????????????????????????????????????? | | ?????????????????????????????????????????????????? | | ?????????????????????????????????????????????????? | | ?????????????????????????????????????????????????? | | ?????????????????????????????????????????????????? | | ?????????????????????????????????????????????????? | | ?????????????????????????????????????????????????? | | ???????????????#?????????????????????????????????? | | ???????????????# ????????????????????????????????? | | ???????????????# ????????????????????????????????? | | ???????????????# ????????????????????????????????? | | ?????????????### ###?????????????????????????????? | | ?????????????# #?????????????????????????????? | | ?????????????# #?????????????????????????????? | | ?????????????# """ #?????????????????????????????? | | ?????????????# """ ########??????????????????????? | | ?????????????# """ [%####??????###??????????? | | ?????????????# ######@g #??????$ ##?????????? | | ?????????????#### ##????#### #????? ##????????? | | ????????????????# #????????# #????? ##???????? | | ????????????##### #????????# #???? ##??????? | | ????????????# %% #????????# ##### #??????? | | #######?????# #####????????# #?????? | | #?????# #????????????####### #?????? | | ##### #?????# #??????????????????? #?????? | | ????# #?##### #???????????????????? #?????? | | ????# #?# #????????????????????# #????? | | ????# #?# #####?????????????????????# ???? | | ??### ### #?????????????????????????? ??? | | ??# #??????????????????????????? #??? | | ??# #######???????????????????????????? ##???? | | ??# #?????????????????????????????????? ##????? | | ??# #??????????????????????????????????? ##?????? | | #?# #????????????????????????????????????##??????? | | ### #????????????????????????????????????????????? | | ## #????????????????????????????????????????????? | | #????????????????????????????????????????????? | | #####????????????????????????????????????????????? | | #????????????????????????????????????????????????? | | ?????????????????????????????????????????????????? | | ?????????????????????????????????????????????????? | | ?????????????????????????????????????????????????? | +----------------------------------------------------+ Best States ------------- Heat Dissipation 39 Energy Generation 14 Energy Capacity 250 Matter Stores 300 Matter Capacity 300 Sight Range 16 Terrain Scan Density 10 Evasion (%) 55 Item Schematics ----------------- None Robot Schematics ------------------ None Fabricated ------------ Nothing Alien Tech Used ----------------- None Achievements -------------- Storm Trooper Uninvited Guest Challenges ------------ None Game ------ Seed AntimissileDeepInitializer Manual? 0 Play Time 00:11:21 Cumulative 0.5 hours Start 2024.11.01 @ 07:32:12 End 2024.11.04 @ 18:28:19 Sessions 4 Manual Loads 0 Difficulty Rogue Special Mode None Game No. 2 Rogue 2 Adventurer 0 Explorer 0 Win Type - Total 0 Types 0/0/0/0/0/0/0/0/0 Lore% 0 Gallery% 2 Achievement% 3 Wizard Run 0 Options --------- Layout 1 ASCII 0 Keyboard 0 Movement Mouse Keybinds 0 Fullscreen 1 Font 24/X11 Map View 50x35 Zoom Use 0% Tactical HUD 0 Map Filters NONE Filters NONE Steam 1 RUN: deedfc0f-c8cd-4d12-ac28-ab39ad2d62ea